[Event "EYTCC Open U18 2022"]
[Site "Thessaloniki"]
[Date "2022.07.18"]
[Round "7.2"]
[White "Czopor, Maciej"]
[Black "Yaniv, Yuval"]
[Result "1/2-1/2"]
[ECO "E77"]
[WhiteElo "2415"]
[BlackElo "2305"]
[Annotator "TA"]
[PlyCount "73"]
[EventDate "2022.07.12"]
[EventType "team-tourn"]
[EventCountry "GRE"]
[SourceTitle "playchess.com"]
[Source "ChessBase"]
[SourceQuality "1"]
[WhiteTeam "Poland"]
[BlackTeam "Israel"]
[WhiteTeamCountry "POL"]
[BlackTeamCountry "ISR"]
[TimeControl "40/5400+30:1800+30"]

{[%evp 19,73,65,58,63,76,69,76,68,84,53,53,24,18,0,55,55,50,40,109,111,128,73,57,81,209,203,201,192,197,202,212,37,135,150,129,145,144,129,182,175,169,188,183,120,115,104,122,109,105,118,104,31,45,0,0,0]} 1. d4 {[%emt 0:00:03]} Nf6 {[%emt 0:00:17]} 2. c4 {[%emt 0:00:04]} g6 {[%emt 0:00:27]} 3. Nc3 {[%emt 0:00:06]} Bg7 {[%emt 0:00:16]} 4. e4 {[%emt 0:00:03]} d6 {[%emt 0:00:11]} 5. f4 {[%emt 0:00:15]} c5 {[%emt 0:01:51]} 6. d5 {[%emt 0:00:34]} O-O {[%emt 0:00:26]} 7. Nf3 {[%emt 0:00:07]} b5 {[%emt 0:03:51]} 8. cxb5 {[%emt 0:00:27]} a6 {[%emt 0:00:11]} 9. a4 {[%emt 0:00:19]} axb5 {[%emt 0:01:46]} 10. Bxb5 {[%emt 0:00:06]} Ba6 {[%emt 0:00:24]} 11. Rb1 {[%emt 0:01:12] E76: King's Indian: Four Pawns Attack: Lines specific to 6 Nf3 move-order.} Bxb5 {[%emt 0:09:02]} 12. axb5 {[%emt 0:00:06] [#]} Qb6 $146 {[%emt 0:00:26]} ({Predecessor:} 12... Qa5 13. O-O Ne8 14. Bd2 Qb4 15. Ra1 Rxa1 16. Qxa1 Nc7 17. Qa7 Nxb5 18. Nxb5 Qxb5 19. Qxe7 Re8 20. Qxd6 Rxe4 21. Ne5 Qe8 22. Bc3 f6 23. Ra1 Bf8 {1-0 (23) Kayonde,A (2404)-Aderito,P (2318) Kampala 2016}) 13. O-O {[%emt 0:16:20] White is better.} Nbd7 {[%emt 0:07:16]} 14. Kh1 {[%emt 0:03:03]} Ne8 $1 {[%emt 0:02:09]} 15. Qd3 {[%emt 0:29:49]} Nc7 $1 {[%emt 0:02:04]} 16. Nd2 {[%emt 0:02:59]} f5 {[%emt 0:15:12]} (16... Qb7 $11) 17. exf5 {[%emt 0:02:30]} Rxf5 {[%emt 0:00:26]} 18. Re1 {[%emt 0:03:18]} Bf8 {[%emt 0:21:00]} (18... Bxc3 $2 19. bxc3 Re8 20. Nc4 $18) ({Black should try} 18... Rf7 $1 $14) 19. Nde4 $36 {[%emt 0:04:09][%mdl 2048] Keeping Black busy.} Qb7 {[%emt 0:01:32][%cal Rc7d5]} 20. Ng3 {[%emt 0:04:52]} (20. g4 $142 Rf7 21. Ng5) 20... Rf7 {[%emt 0:01:59]} 21. f5 {[%emt 0:05:25]} Ne5 {[%emt 0:02:25] [#]} (21... gxf5 $16 22. Bf4 (22. Nxf5 Ne5 $11) 22... c4 23. Qxc4 Rb8) 22. Rxe5 $1 $18 {[%emt 0:01:05][%mdl 512]} dxe5 {[%emt 0:00:03]} 23. fxg6 {[%emt 0:00:07]} hxg6 {[%emt 0:00:17]} 24. Qxg6+ {[%emt 0:00:20]} Rg7 {[%emt 0:00:40] [#]} 25. Qf5 {[%emt 0:03:20]} (25. Qd3 $1 $18) 25... Rf7 {[%emt 0:02:50]} (25... Nxb5 $14 26. Nxb5 Qxb5) 26. Qg4+ $16 {[%emt 0:03:08]} ({Much less strong is} 26. Qxe5 $6 Nxb5 27. Qg5+ Rg7 $14) 26... Rg7 {[%emt 0:00:08]} 27. Qc4 {[%emt 0:00:53] Strongly threatening d6+. White is more active.} Ne8 {[%emt 0:01:53][%cal Bc7e8,Be8d6,Bd6c4][%mdl 32]} 28. d6+ {[%emt 0:03:15]} Rf7 {[%emt 0:05:20]} (28... e6 $16) 29. dxe7 $18 {[%emt 0:00:48] Dancing on a razor blade.} Qxe7 {[%emt 0:00:38]} 30. Be3 {[%emt 0:00:41]} ({Resist} 30. Nf5 $6 Qf6 31. Qg4+ Kh8 32. Qh5+ Rh7 $14) 30... Nd6 {[%emt 0:03:03]} 31. Qxc5 {[%emt 0:01:39]} (31. Qg4+ $18 Rg7 32. Qf3) 31... Rc8 $16 {[%emt 0:01:30]} 32. Qd5 {[%emt 0:00:24]} Nc4 {[%emt 0:00:07]} 33. Bg1 {[%emt 0:01:09] aiming for Nce4.} Qd7 {[%emt 0:04:54]} 34. Qxd7 {[%emt 0:02:43]} Rxd7 {[%emt 0:00:01]} 35. Nce4 {[%emt 0:00:29]} (35. Nge4 $16 {Nf6+ is the strong threat.} Rb7 36. g4) 35... Rb7 $14 {[%emt 0:02:13]} 36. b3 {[%emt 0:01:51]} (36. Ra1 $5 {[%cal Rb2b3]}) 36... Rxb5 {[%emt 0:02:54]} 37. Rd1 {[%emt 0:01:15] Weighted Error Value: White=0.22 (precise) /Black=0.22 (precise)} 1/2-1/2

[Event "EYTCC Open U18 2022"]
[Site "Thessaloniki"]
[Date "2022.07.18"]
[Round "7.3"]
[White "Zemach, Nadav"]
[Black "Klimkowski, Jan"]
[Result "0-1"]
[ECO "A62"]
[WhiteElo "2225"]
[BlackElo "2398"]
[Annotator "TA"]
[PlyCount "82"]
[EventDate "2022.07.12"]
[EventType "team-tourn"]
[EventCountry "GRE"]
[SourceTitle "playchess.com"]
[Source "ChessBase"]
[SourceQuality "1"]
[WhiteTeam "Israel"]
[BlackTeam "Poland"]
[WhiteTeamCountry "ISR"]
[BlackTeamCountry "POL"]
[TimeControl "40/5400+30:1800+30"]

{[%evp 18,82,15,11,20,22,19,6,15,0,14,-13,-27,-32,-27,-22,-17,-20,-14,-57,7,-69,-70,-119,-107,-109,-119,-109,-85,-124,-126,-123,-126,-123,-79,-355,-345,-345,-344,-434,-424,-487,-484,-482,-461,-740,-750,-680,-641,-1080,-1035,-1479,-1471,-1562,-1467,-29988,-29989,-29989,-29990,-29994,-29995,-29995,-29996,-29996,-29989,-29989,-29989]} 1. d4 {[%emt 0:00:04]} Nf6 {[%emt 0:00:05]} 2. c4 {[%emt 0:00:05]} e6 {[%emt 0:00:04]} 3. g3 {[%emt 0:00:04]} c5 {[%emt 0:00:05]} 4. d5 {[%emt 0:00:04]} exd5 {[%emt 0:00:04]} 5. cxd5 {[%emt 0:00:05]} d6 {[%emt 0:00:07]} 6. Bg2 {[%emt 0:00:03]} g6 {[%emt 0:00:05]} 7. Nc3 {[%emt 0:00:03]} Bg7 {[%emt 0:00:06]} 8. Nf3 {[%emt 0:00:07]} O-O {[%emt 0:00:05]} 9. O-O {[%emt 0:00:05]} Re8 {[%emt 0:00:05]} 10. Bf4 {[%emt 0:00:04]} Bf5 $1 {[%emt 0:00:10][%mdl 4] outshines the older 10...a6. A62: Modern Benoni: Fianchetto Variation without early ...Nbd7.} 11. Nh4 {[%emt 0:02:11]} Bg4 {[%emt 0:00:50][%cal Ob7b5]} 12. Qd2 {[%emt 0:00:25]} b5 {[%emt 0:00:50][%cal Bb7b5,Bb5b4][%mdl 32] The position is equal.} 13. Rfe1 {[%emt 0:08:50]} a6 {[%emt 0:13:22] [#]} 14. a4 $146 {[%emt 0:07:40]} ({Predecessor:} 14. a3 Bc8 15. Nf3 Qb6 16. e4 Nbd7 17. h3 Bb7 18. Rad1 c4 19. g4 Nc5 20. e5 {½-½ (30) Robson,N (2608)-Martin Clemente,J (2620) ICCF email 2020}) 14... b4 {[%emt 0:00:24]} 15. Nd1 {[%emt 0:00:11]} Bc8 {[%emt 0:06:32]} 16. a5 {[%emt 0:09:17]} Ne4 $36 {[%emt 0:06:22][%mdl 2048] Black fights for an advantage.} 17. Qc2 {[%emt 0:06:57]} f5 {[%emt 0:01:25] White must now prevent ...g5.} 18. Nf3 {[%emt 0:05:08]} (18. Ne3 {looks sharper.} Bf6 19. Rad1 Bxh4 20. gxh4 Qxh4 21. Bg3) 18... Bb7 {[%emt 0:01:58]} (18... Bd7 $15) 19. Qb3 {[%emt 0:06:11]} ({White should try} 19. Ne3 $11) 19... Nd7 {[%emt 0:01:46]} 20. h4 {[%emt 0:14:24] [#]} (20. Ne3 $15) 20... Ndf6 $1 $17 {[%emt 0:04:05] Black is more active.} 21. Ne3 {[%emt 0:02:50]} h6 {[%emt 0:01:43] Inhibits Ng5.} 22. Red1 {[%emt 0:03:06]} Kh7 {[%emt 0:03:37]} 23. Bh3 {[%emt 0:03:26]} Nh5 {[%emt 0:02:39]} 24. Nc4 {[%emt 0:05:11]} Nxf4 {[%emt 0:00:39]} 25. gxf4 {[%emt 0:00:03]} Nf6 {[%emt 0:02:38][%cal Be4f6,Bf6h5,Bh5f4,Bf4d5,Bd5e3][%mdl 32]} 26. Ne3 $2 {[%emt 0:02:05][%mdl 8192] This costs White the game.} (26. e3 $17) 26... Nh5 $19 {[%emt 0:03:27]} 27. Qc2 {[%emt 0:10:12]} Qf6 ({Avoid the trap} 27... Nxf4 $2 28. Bxf5 Qf6 29. Bd3) 28. Rab1 {[%emt 0:02:48]} Nxf4 {[%emt 0:00:42]} 29. Bf1 {[%emt 0:00:02]} Re4 {[%emt 0:01:38]} 30. b3 {[%emt 0:01:33]} Rae8 {[%emt 0:00:15] Strongly threatening ...Rxe3.} 31. Rd2 {[%emt 0:01:01]} (31. Rd3 $142) 31... Rxe3 {[%emt 0:03:03]} 32. fxe3 {[%emt 0:00:09]} Nxd5 {[%emt 0:00:19]} 33. Re1 {[%emt 0:03:12]} Nxe3 {[%emt 0:01:04]} 34. Qd3 {[%emt 0:00:02]} d5 {[%emt 0:00:24][%cal Bd6d5,Bd5d4][%mdl 32]} 35. Bh3 {[%emt 0:00:56]} d4 {[%emt 0:00:51] [#] ( -> ...Qd6)} 36. Qb1 {[%emt 0:00:22]} Qd6 {[%emt 0:00:56] Black mates.} 37. Kf2 {[%emt 0:01:03]} Bxf3 {[%emt 0:00:11]} 38. Kxf3 {[%emt 0:00:02]} Re4 {[%emt 0:00:23]} 39. Qxe4 {[%emt 0:00:47]} fxe4+ {[%emt 0:00:04]} 40. Kxe4 {[%emt 0:00:00]} Qe5+ {[%emt 0:00:00]} 41. Kd3 {[%emt 0:00:12]} Qg3 {[%emt 0:00:21][%csl LRe1,LRh3,LRh4] Weighted Error Value: White=0.82/Black=0.11 (very precise)} 0-1

[Event "EYTCC Open U18 2022"]
[Site "Thessaloniki"]
[Date "2022.07.18"]
[Round "7.4"]
[White "Seemann, Jakub"]
[Black "Vagman, Roy"]
[Result "0-1"]
[ECO "D02"]
[WhiteElo "2382"]
[BlackElo "2180"]
[Annotator "TA"]
[PlyCount "134"]
[EventDate "2022.07.12"]
[EventType "team-tourn"]
[EventCountry "GRE"]
[SourceTitle "playchess.com"]
[Source "ChessBase"]
[SourceQuality "1"]
[WhiteTeam "Poland"]
[BlackTeam "Israel"]
[WhiteTeamCountry "POL"]
[BlackTeamCountry "ISR"]
[TimeControl "40/5400+30:1800+30"]

{[%evp 14,134,11,3,4,0,42,35,52,-20,3,-22,-16,-25,-15,-24,-22,-39,-39,-39,-43,-47,-45,-42,-17,-25,-15,-39,-15,-15,-15,-15,-15,-23,-14,-20,-14,-19,-25,-9,-2,-70,-69,-76,-64,-89,-14,-12,-16,-41,-41,-97,-57,-93,-95,-95,-95,-93,-79,-79,-61,-113,-120,-120,-105,-114,-106,-93,-105,-122,-125,-125,-111,-137,-95,-97,-95,-95,-95,-95,-95,-95,-95,-126,-126,-130,-129,-129,-129,-129,-109,-112,-31,-31,-37,-404,-402,-1112,-612,-1063,-844,-1026,-877,-1118,-1017,-12831,-12831,-12831,-12832,-12832,-12827,-12827,-12827,-12827,-12827,-12827,-12825,-12829,-12829,-12832,-12827,-12830,-4431]} 1. d4 {[%emt 0:00:05]} d5 {[%emt 0:00:15]} 2. Nf3 {[%emt 0:01:43]} Nf6 {[%emt 0:00:16]} 3. g3 {[%emt 0:00:07]} e6 {[%emt 0:06:14]} 4. Bg2 {[%emt 0:00:08]} Be7 {[%emt 0:05:04]} 5. O-O {[%emt 0:00:09]} b5 {[%emt 0:09:25]} 6. a4 {[%emt 0:00:07]} b4 {[%emt 0:01:52]} 7. c4 {[%emt 0:00:07]} bxc3 {[%emt 0:05:56]} 8. Nxc3 {[%emt 0:00:10]} O-O {[%emt 0:00:42] A46: 1 d4 Nf6 2 Nf3 e6: Torre, London and Colle Systems.} 9. Bf4 {[%emt 0:00:06]} Na6 {[%emt 0:04:25]} 10. Ne5 {[%emt 0:00:24]} Bb7 {[%emt 0:01:59] White is slightly better.} 11. Qc2 {[%emt 0:01:07] [#]} (11. Qb3 $1 $14 Qc8 12. Rfc1) 11... Nb4 $146 {[%emt 0:03:46]} (11... Nd7 {keeps more tension.} 12. Rfc1 Nxe5 13. Bxe5 c6) ({Predecessor:} 11... c5 12. dxc5 Bxc5 13. a5 Qe7 14. Qa4 Rfc8 15. Rac1 Nb4 16. Na2 Nxa2 17. Qxa2 Ba6 {0-1 (48) Hrabusa,M (2397)-Druska,J (2460) Ruzomberok 2019}) 12. Qd2 {[%emt 0:00:16]} a5 {[%emt 0:03:45]} 13. Rac1 {[%emt 0:00:12]} Rc8 {[%emt 0:03:15]} 14. Bg5 {[%emt 0:23:25]} h6 {[%emt 0:06:02]} 15. Be3 {[%emt 0:00:09]} Nd7 {[%emt 0:07:27]} 16. Nxd7 {[%emt 0:03:11]} Qxd7 {[%emt 0:00:02]} 17. Rfd1 {[%emt 0:02:21]} Ba6 {[%emt 0:02:00]} 18. b3 {[%emt 0:15:01] Inhibits Bc4.} Rfd8 {[%emt 0:00:52]} 19. Na2 {[%emt 0:00:58]} Rb8 {[%emt 0:05:48]} 20. Bf4 {[%emt 0:06:19]} Rb7 {[%emt 0:02:42]} (20... Nc6 $5 {[%cal Rb8b3]} 21. Rc3 Rb6 $15) 21. Nxb4 {[%emt 0:00:52]} Bxb4 {[%emt 0:01:11]} 22. Qc2 {[%emt 0:00:08]} Ba3 {[%emt 0:02:10]} 23. Ra1 {[%emt 0:01:58]} Bd6 {[%emt 0:02:53]} 24. Rdc1 {[%emt 0:02:13]} Rdb8 {[%emt 0:03:09] Hoping for ...Bxf4.} 25. Rab1 {[%emt 0:00:20]} Bxf4 {[%emt 0:01:25]} 26. gxf4 {[%emt 0:00:04]} Qd6 {[%emt 0:01:27]} 27. f5 {[%emt 0:04:01]} (27. e3 $11) 27... exf5 $15 {[%emt 0:08:37]} 28. Qxf5 {[%emt 0:00:08]} c6 {[%emt 0:00:18]} 29. Rc3 {[%emt 0:11:12]} Re7 {[%emt 0:03:36]} (29... Bxe2 $17 {[%cal Oe2c4] Strongly threatening ...Bc4!} 30. Rbc1 Rb6) 30. Rbc1 $11 {[%emt 0:02:49]} Bc8 {[%emt 0:02:13]} 31. Qc2 {[%emt 0:01:00]} Bd7 {[%emt 0:00:21]} 32. Rc5 {[%emt 0:05:17]} (32. Kh1 $15) 32... Qf6 {[%emt 0:00:48]} 33. e3 {[%emt 0:00:38]} Qg5 {[%emt 0:01:46]} 34. Kh1 {[%emt 0:00:41]} Re6 $1 {[%emt 0:02:03]} ({Much less strong is} 34... Bf5 35. Qd1 $11) 35. Rc3 {[%emt 0:11:48]} Rg6 {[%emt 0:00:32][%csl Gg6][%cal Rg5g2]} 36. f4 {[%emt 0:00:06]} Qh5 {[%emt 0:02:22]} 37. Qf2 {[%emt 0:00:19]} (37. e4 $15) 37... Re8 $17 {[%emt 0:00:54]} 38. Bf3 {[%emt 0:00:43] [#]} Bg4 {[%emt 0:01:14]} 39. Bxg4 {[%emt 0:00:04]} Qxg4 {[%emt 0:00:34]} 40. Rg1 {[%emt 0:00:00]} Qf5 {[%emt 0:00:00]} 41. Rxg6 {[%emt 0:04:58]} Qxg6 {[%emt 0:03:31][%mdl 4096] Endgame KQR-KQR} 42. h3 {[%emt 0:06:40]} Qb1+ {[%emt 0:05:04]} 43. Kh2 {[%emt 0:02:57]} Re6 {[%emt 0:12:45] White must now prevent ...Rg6. 0x0.00200b187018dp-1022s more active pieces.} 44. Qc2 {[%emt 0:09:10]} Qxc2+ {[%emt 0:01:26]} (44... Qe1 {with more complications.} 45. Rxc6 Re4 46. Rc8+ Kh7) 45. Rxc2 {[%emt 0:00:01]} Rxe3 {[%emt 0:00:08]} 46. Rxc6 {[%emt 0:00:07]} Rxb3 {[%emt 0:00:40] KR-KR} 47. Rc5 {[%emt 0:00:07][%csl LRa5,LRd5]} Rb4 {[%emt 0:00:20][%csl LRa4,LRd4]} 48. Rxa5 {[%emt 0:00:26]} Rxd4 {[%emt 0:00:05]} 49. f5 {[%emt 0:01:15]} Kf8 {[%emt 0:03:44]} 50. Kg3 {[%emt 0:01:32] [#]} Ke7 $1 {[%emt 0:00:24]} 51. Ra6 {[%emt 0:00:05]} Rb4 {[%emt 0:01:05]} 52. Kf3 {[%emt 0:01:21]} Rb3+ {[%emt 0:01:03]} (52... Rc4 $17 53. a5 Rh4) 53. Kf4 $15 {[%emt 0:00:25]} f6 {[%emt 0:01:33]} 54. a5 $2 {[%emt 0:08:04][%mdl 8192] Loses the game.} ({White should play} 54. Kg4 $15) 54... Rxh3 $19 {[%emt 0:00:46] ...Ra3 is the strong threat.} 55. Rb6 {[%emt 0:00:58]} (55. Ra7+ $142 Kd6 56. Rxg7) 55... Rh4+ {[%emt 0:00:29] Black is clearly winning.} 56. Kf3 {[%emt 0:02:03]} Ra4 {[%emt 0:00:27]} 57. a6 {[%emt 0:00:52]} Kf7 {[%emt 0:00:33]} 58. Rd6 {[%emt 0:03:57]} Kg8 {[%emt 0:01:03]} 59. Rxd5 {[%emt 0:00:12]} Rxa6 {[%emt 0:00:04]} 60. Rd1 {[%emt 0:00:02]} Ra3+ {[%emt 0:00:14]} 61. Kg4 {[%emt 0:00:49]} Kh7 {[%emt 0:00:12]} 62. Rh1 {[%emt 0:00:09]} Ra4+ {[%emt 0:00:28]} 63. Kf3 {[%emt 0:00:16]} Kg8 {[%emt 0:01:01]} 64. Kg3 {[%emt 0:00:22]} Kf7 {[%emt 0:00:20]} 65. Rh2 {[%emt 0:00:53]} Ra1 {[%emt 0:00:29]} 66. Rb2 {[%emt 0:00:49]} Rg1+ {[%emt 0:00:40]} 67. Kf4 {[%emt 0:00:05]} Kg8 {[%emt 0:00:22] Weighted Error Value: White=0.63/Black=0.20 (precise)} (67... h5 $142 68. Rb8 Rf1+ 69. Ke4 h4) 0-1

[Event "EYTCC Open U18 2022"]
[Site "Thessaloniki"]
[Date "2022.07.18"]
[Round "7.5"]
[White "Fromm, Marius"]
[Black "Svane, Frederik"]
[Result "0-1"]
[ECO "C50"]
[WhiteElo "2391"]
[BlackElo "2521"]
[Annotator "TA"]
[PlyCount "102"]
[EventDate "2022.07.12"]
[EventType "team-tourn"]
[EventCountry "GRE"]
[SourceTitle "playchess.com"]
[Source "ChessBase"]
[SourceQuality "1"]
[WhiteTeam "Germany"]
[BlackTeam "Germany"]
[WhiteTeamCountry "GER"]
[BlackTeamCountry "GER"]
[TimeControl "40/5400+30:1800+30"]

{[%evp 11,102,12,23,20,27,23,18,23,36,39,43,34,22,15,37,22,48,30,24,6,20,14,99,90,83,0,0,-41,-44,-82,-83,-334,-205,-328,-324,-355,-366,-353,-100,-104,0,-360,-347,-414,-407,-409,-212,-197,-198,-197,-162,-137,0,0,0,0,0,0,0,0,0,-308,-295,-422,0,-890,-886,-29957,-29952,-6179,-5662,-1987,-148,-150,-154,-151,-152,-263,-154,-1013,-934,-5064,-5073,-4798,-375,-3948,-2812,-2935,-2613,-29975,-29976,-29977,-29978]} 1. e4 {[%emt 0:00:05]} e5 {[%emt 0:00:42]} 2. Nf3 {[%emt 0:00:15]} Nc6 {[%emt 0:00:08]} 3. Bc4 {[%emt 0:00:20]} Bc5 {[%emt 0:00:18]} 4. d3 {[%emt 0:00:13]} Nf6 {[%emt 0:00:09]} 5. O-O {[%emt 0:00:15]} d6 {[%emt 0:00:07]} 6. c3 {[%emt 0:00:12]} a6 {[%emt 0:00:04]} 7. a4 {[%emt 0:00:22] C54: Giuoco Piano: 4 c3 Nf6, main lines with 5 d4 and 5 d3.} Ba7 {[%emt 0:00:05]} 8. Re1 {[%emt 0:01:31]} h6 {[%emt 0:00:06]} 9. Nbd2 {[%emt 0:00:34] The position is equal.} g5 {[%emt 0:00:06]} 10. b4 {[%emt 0:00:17]} Nh7 $1 {[%emt 0:00:10][%mdl 4] is more profitable than 10...g4 at the moment.} 11. Nf1 {[%emt 0:10:18]} g4 $1 {[%emt 0:00:32]} 12. N3d2 {[%emt 0:00:04]} (12. Bxh6 $2 Qf6 13. Be3 gxf3 14. Qxf3 Qxf3 15. gxf3 Bh3 $19) 12... Qf6 {[%emt 0:00:07]} 13. Ne3 {[%emt 0:02:52] [#]} Bxe3 $146 {[%emt 0:00:05]} ({Predecessor:} 13... Ne7 14. d4 Ng5 15. Bb2 h5 16. b5 exd4 17. cxd4 Bxd4 18. Bxd4 Qxd4 19. bxa6 bxa6 {½-½ (43) Ponomariov,R (2631)-Bartel,M (2626) Dortmund 2021}) 14. Rxe3 {[%emt 0:10:30]} (14. fxe3 $5 {[%cal Re1f1]} Qh4 15. g3 $16) 14... h5 {[%emt 0:00:13]} 15. f3 {[%emt 0:16:16]} Ne7 {[%emt 0:00:10]} 16. Qf1 {[%emt 0:04:06]} g3 {[%emt 0:25:51]} (16... Ng6 $11) 17. hxg3 $16 {[%emt 0:00:56]} h4 {[%emt 0:00:06]} 18. f4 {[%emt 0:06:02]} (18. g4 $1 $16) 18... Qh6 $1 $11 {[%emt 0:16:32]} 19. Nb3 {[%emt 0:01:07]} hxg3 {[%emt 0:09:08] ( -> ...Qh2#)} 20. Rxg3 {[%emt 0:00:06]} Nf6 {[%emt 0:01:46]} 21. f5 $2 {[%emt 0:13:28][%mdl 8192]} (21. Qf3 $17 {is a better defense.} Qh2+ 22. Kf2) 21... Qh2+ $19 {[%emt 0:00:37]} 22. Kf2 {[%emt 0:00:03]} Qh4 {[%emt 0:02:13]} 23. Bg5 {[%emt 0:10:29]} Ng4+ {[%emt 0:00:20]} 24. Kf3 {[%emt 0:00:13]} Nh2+ $2 {[%emt 0:00:10] Dancing on a razor blade. Pair of Knights!} (24... Qxg5 $19 {has better winning chances.} 25. Ke2 (25. Rxg4 $2 Qh5 $19) 25... Rh4) 25. Kf2 $17 {[%emt 0:00:02]} Ng4+ $2 {[%emt 0:00:06][%mdl 8192]} (25... Qxg3+ $1 $17 26. Kxg3 Nxf1+ 27. Rxf1 Bd7) 26. Kf3 $19 {[%emt 0:00:09]} Qxg5 {[%emt 0:15:11]} (26... Nh2+ $2 27. Kf2 Ng4+ $19) 27. Rxg4 {[%emt 0:00:07]} Qh5 {[%emt 0:00:03]} 28. Qe2 {[%emt 0:04:04] [#]} d5 {[%emt 0:00:18]} (28... Rg8 29. Kg3 Rg5 30. Qf3 $17) (28... Nxf5 $142 $1 {[%cal Of5d4][%mdl 512] ...Nd4+! is the strong threat.} 29. exf5 (29. Kf2 $2 Nh6 $19) 29... Bxf5) 29. Bxd5 {[%emt 0:01:31]} Nxd5 {[%emt 0:00:49]} 30. exd5 {[%emt 0:00:22]} Bxf5 {[%emt 0:03:40][%mdl 64] Pin} 31. Qxe5+ {[%emt 0:00:14]} Kf8 {[%emt 0:00:05]} (31... Kd8 32. Qf6+ Kc8 33. Qg5 Bxg4+ 34. Qxg4+ Qxg4+ 35. Kxg4 $11) (31... Kd7 $1 $17 32. Nc5+ Kc8) 32. Qg7+ $11 {[%emt 0:01:09]} Ke8 {[%emt 0:00:18][%cal Bf8e8,Be8d7,Bd7c8,Bc8b8,Bb8a7][%mdl 32]} 33. Re1+ {[%emt 0:00:44]} Kd7 {[%emt 0:00:10] Hoping for ...Rag8.} 34. Nc5+ {[%emt 0:01:52]} Kc8 {[%emt 0:00:28]} 35. Re7 {[%emt 0:09:27][%cal Oe7f7]} Kb8 $1 {[%emt 0:08:51]} (35... Kd8 $2 36. Rxf7 $1 Qxg4+ 37. Qxg4 Bxg4+ 38. Kxg4 Rg8+ 39. Kf5 $18) 36. c4 $2 {[%emt 0:00:08][%mdl 8192]} Ka7 $1 $19 {[%emt 0:05:38]} 37. Qg5 {[%emt 0:02:37]} ({Of course not} 37. Rxc7 Rae8 38. Rxb7+ Ka8) (37. Ke3 $142 Qh1 38. Rg5) 37... Qh1 $2 {[%emt 0:01:56]} (37... Bxg4+ $19 38. Qxg4 Qh1) 38. Rf4 $2 {[%emt 0:05:57][%mdl 8192] [#]} ({But not} 38. Rxc7 $2 Qf1+ 39. Ke3 Rae8+ 40. Ne4 Qg1+ 41. Kd2 Bxg4 42. Qe3+ (42. Qxg4 $2 Reg8 $19) 42... Qxe3+ 43. Kxe3 f5 $19) (38. Qxf5 $11 Qf1+ 39. Ke4 Qe1+ 40. Kd4 Qa1+ 41. Ke4 Qe1+ 42. Kd4 Qa1+ 43. Ke4 Qe1+) 38... Rag8 $1 {[%emt 0:01:41]} 39. Qxf5 {[%emt 0:00:23]} Rxg2 {[%emt 0:06:15]} 40. Ke3 {[%emt 0:00:00]} Qg1+ {[%emt 0:00:00]} 41. Rf2 {[%emt 0:04:56]} Rxf2 $2 {[%emt 0:11:43]} (41... Qe1+ $19 {and Black stays clearly on top.} 42. Kd4 Rh4+ 43. Ne4 Rxf2 44. Rxf7 Rxf5 45. Rxf5 Qxb4) 42. Qxf2 $17 {[%emt 0:00:08]} Qg5+ $40 {[%emt 0:00:03][%mdl 128] Black goes for the king.} 43. Kd4 {[%emt 0:02:15]} Qxe7 {[%emt 0:00:02][%mdl 4096] Endgame KQR-KQN} 44. a5 {[%emt 0:05:00] [#]} (44. Kc3 $17) 44... Kb8 {[%emt 0:00:49]} (44... Rh1 $1 $19 {Strongly threatening ...Kb8.} 45. Ne4 Qxb4 46. Ke5+ Ka8 47. Qxf7 Qb2+ 48. Ke6 Qh8) 45. Qg3 $2 {[%emt 0:06:01]} (45. Kc3 $17) 45... Qf6+ $19 {[%emt 0:02:13]} 46. Qe5 {[%emt 0:00:26]} Rh4+ {[%emt 0:01:14]} 47. Ne4 {[%emt 0:00:04]} Qf2+ {[%emt 0:00:10]} 48. Kc3 {[%emt 0:00:04]} Qe1+ {[%emt 0:00:05]} 49. Kc2 {[%emt 0:01:12]} Qe2+ {[%emt 0:00:29]} 50. Kc3 {[%emt 0:00:08]} Rh3 {[%emt 0:01:11][%csl Ge2][%cal Rh3d3]} 51. Qd4 {[%emt 0:01:01]} Rh2 {[%emt 0:00:08] Weighted Error Value: White=1.06/Black=0.39} 0-1